bitfinex-derivatives/quotes_ETHF0:USTF0_20260113
["timestamp","ask_amount","ask_price","bid_price","bid_amount"]
[1768337558875,0.14350087,3207.0,3205.3,0.30223205]
[1768337559185,0.14350087,3206.4,3205.2,0.00265765]
[1768337559887,0.14350087,3206.3,3205.2,0.00265765]
[1768337560080,0.14350087,3206.1,3205.2,0.00265765]
[1768337560783,0.14350087,3206.0,3204.0,0.15608]
[1768337560984,0.14350087,3205.9,3204.0,0.15608]
[1768337561175,0.14350087,3205.9,3204.1,0.15608]
[1768337561784,0.14350087,3205.9,3204.1,0.15966618]
[1768337563586,0.14350087,3205.9,3204.1,0.30587823]
[1768337563982,0.14350087,3205.9,3204.1,0.15966618]
[1768337565388,0.14350087,3206.5,3204.7,0.14621205]
[1768337565582,1.343,3206.4,3204.7,0.14621205]
[1768337565784,1.48650087,3206.4,3204.7,0.14621205]
[1768337566283,0.14350087,3206.3,3204.7,0.14621205]
[1768337566486,0.14350087,3206.3,3204.3,0.15607]
[1768337566684,0.14350087,3206.3,3204.4,0.15606]
[1768337566883,0.14350087,3206.0,3204.4,0.15606]
[1768337567692,0.14350087,3206.0,3204.5,0.15606]
[1768337568285,0.14350087,3206.4,3204.7,0.15605]
[1768337569590,1.51923737,3206.1,3204.1,0.15966618]
[1768337569781,3.121,3206.8,3204.1,0.15966618]
[1768337569782,0.14350087,3205.6,3204.1,0.15966618]
[1768337573599,0.14350087,3205.2,3204.1,0.00358618]
[1768337573782,0.14731306,3205.2,3204.1,0.00358618]
[1768337575694,0.00381219,3205.2,3204.1,0.00358618]
[1768337577599,0.14731306,3205.2,3204.1,0.00358618]
[1768337582102,0.00381219,3205.2,3204.1,0.00358618]
[1768337587307,1.0395811,3205.1,3204.1,0.00358618]
[1768337587698,1.0395811,3204.9,3204.1,0.00358618]
[1768337589106,1.0395811,3205.1,3204.1,0.00358618]
[1768337589311,0.00381219,3205.2,3204.3,1.0395811]
[1768337589500,0.00381219,3205.2,3204.5,1.0395811]
[1768337589700,0.00381219,3205.2,3204.3,1.0395811]
[1768337590803,0.00381219,3205.2,3204.5,1.0395811]
[1768337591118,0.00381219,3205.2,3204.3,1.0395811]
[1768337591303,0.00381219,3205.2,3204.2,0.15607]
[1768337593812,0.1365598,3205.2,3204.1,0.00358618]
[1768337594616,6.454,3205.7,3204.6,1.52002149]
[1768337594912,0.13274761,3205.8,3204.1,0.00358618]
[1768337595699,0.00387153,3205.8,3204.3,0.13761319]
[1768337595902,1.34687153,3205.8,3204.4,0.15606]
[1768337596107,0.00387153,3205.8,3204.7,0.29366319]
[1768337596305,0.00387153,3205.8,3204.9,0.15604]
[1768337597213,0.00387153,3205.8,3204.6,0.13879848]
[1768337598023,0.01234168,3205.2,3204.6,0.13879848]
[1768337598406,0.00387153,3205.8,3204.6,0.13879848]
[1768337600013,0.00387153,3205.8,3204.5,0.15605]
[1768337600220,0.00387153,3205.8,3204.1,0.14238466]
[1768337600517,0.00387153,3205.8,3204.4,0.15606]
[1768337604820,0.1491405,3205.8,3204.4,0.15606]
[1768337607033,0.1491405,3205.8,3204.1,0.00358618]
[1768337609320,0.14526897,3205.6,3204.1,0.00358618]
[1768337612330,0.01022954,3204.9,3204.1,0.00358618]
[1768337613529,0.01022954,3204.5,3204.1,0.00358618]
[1768337614424,1.18490559,3205.3,3204.1,0.00358618]
[1768337614632,0.01022954,3204.3,3204.1,0.00358618]
[1768337614824,0.01022954,3204.3,3203.9,0.15608]
[1768337615619,0.01022954,3204.1,3203.3,0.15611]
[1768337615828,0.01022954,3204.1,3203.3,0.15847446]
[1768337616629,1.17651913,3205.0,3203.3,0.29706382]
[1768337617327,0.13688251,3204.9,3203.3,0.29706382]
[1768337617535,1.03963662,3204.4,3203.3,0.00236446]
[1768337617823,0.13688251,3204.6,3203.3,0.00236446]
[1768337622834,0.13688251,3204.6,3203.3,0.15847446]
[1768337623235,1.341,3204.9,3203.3,0.15847446]
[1768337623838,0.13688251,3205.0,3203.5,1.03963662]
[1768337624143,0.13688251,3204.8,3203.4,0.15611]
[1768337627646,0.13688251,3204.8,3203.5,0.1561]
[1768337633853,0.13688251,3204.8,3203.6,0.1561]
[1768337635249,0.13688251,3204.8,3203.3,0.00236446]
[1768337635250,1.03963662,3204.1,3203.3,0.00236446]
[1768337635463,0.13688251,3204.3,3203.3,0.00236446]
[1768337639258,0.13688251,3204.1,3202.4,3.9228217]
[1768337639453,0.13688251,3203.3,3202.0,0.15618]
[1768337639655,1.17651913,3203.7,3202.0,1.03963662]
[1768337639862,4.465,3203.6,3202.0,1.03963662]
[1768337640056,4.465,3203.6,3201.8,0.13858936]
[1768337640252,4.60493151,3203.6,3201.8,0.14161141]
[1768337640451,0.13688251,3203.5,3201.8,0.00302205]
[1768337641352,0.13688251,3203.2,3201.8,0.00302205]
[1768337645458,1.342,3203.1,3201.8,0.00302205]
[1768337646055,1.342,3203.0,3201.8,0.15921205]
[1768337646256,0.003049,3203.6,3202.0,0.15618]
[1768337646462,1.342,3203.5,3202.0,0.15618]
[1768337646749,1.342,3203.4,3202.0,0.15618]
[1768337646951,0.003049,3203.6,3202.2,1.03963662]
[1768337647154,1.342,3203.5,3202.2,1.03963662]
[1768337647654,0.003049,3203.6,3202.2,1.18274556]
[1768337647953,0.003049,3203.6,3202.5,0.15615]
[1768337648450,0.003049,3203.6,3202.5,1.19578662]
[1768337648654,0.003049,3203.6,3202.5,0.15615]
[1768337656058,1.345049,3203.6,3202.5,0.15615]
[1768337656968,0.003049,3203.6,3202.5,1.19578662]
[1768337657267,0.003049,3203.6,3202.6,0.13970853]
[1768337658866,0.003049,3203.6,3202.6,0.29585853]
[1768337661572,0.003049,3203.6,3202.9,1.04022699]
[1768337662770,0.13429739,3204.4,3203.1,1.04022699]
[1768337663069,0.15604,3204.8,3203.3,1.04022699]
[1768337663070,1.341,3204.3,3203.3,1.04022699]
[1768337663270,2.38122699,3204.3,3203.3,1.04022699]
[1768337663465,2.38122699,3204.3,3203.1,1.04022699]
[1768337663966,2.38472075,3204.3,3203.1,1.04022699]
[1768337665878,1.04372075,3204.3,3203.1,1.04022699]
[1768337666174,1.04372075,3204.3,3203.3,1.04022699]
[1768337666175,0.00349376,3204.3,3203.3,1.04022699]
[1768337667464,1.04022699,3204.1,3203.1,0.15612]
[1768337669873,1.04022699,3203.9,3202.7,1.04022699]
[1768337670369,1.04022699,3203.9,3202.5,0.15615]
[1768337670370,1.04022699,3203.5,3202.5,0.15615]
[1768337670577,1.04022699,3203.5,3202.5,1.19637699]
[1768337672274,1.04022699,3203.5,3202.5,0.15615]
[1768337675674,1.04022699,3204.0,3201.8,0.13906453]
[1768337675675,1.04022699,3203.1,3201.9,0.15618]
[1768337675876,1.04022699,3203.1,3201.9,1.19640699]
[1768337676071,1.04022699,3202.9,3201.9,0.15618]
[1768337676281,1.04022699,3202.7,3201.9,0.15618]
[1768337676469,1.04022699,3202.5,3201.8,0.00302205]
[1768337676670,1.18207396,3202.0,3200.7,0.15624]
[1768337676965,1.04022699,3201.8,3200.7,0.15624]
[1768337677168,1.04022699,3201.8,3200.8,1.04022699]
[1768337677378,1.04022699,3201.8,3200.7,0.15624]
[1768337677566,1.04278488,3201.8,3200.7,0.16021992]
[1768337677766,1.04022699,3201.4,3200.7,0.00397992]
[1768337677968,1.04022699,3201.2,3200.7,0.00397992]
[1768337678172,1.18207396,3201.2,3200.1,1.04022699]
[1768337678676,1.04022699,3200.8,3199.7,1.04022699]
[1768337678872,0.14184697,3201.2,3199.9,1.04022699]
[1768337679274,1.48184697,3201.2,3199.9,0.00376092]
[1768337679970,0.14184697,3201.2,3199.9,0.00376092]
[1768337680179,0.14184697,3201.7,3199.9,0.00376092]
[1768337680485,0.00255789,3201.8,3200.6,0.15625]
[1768337682771,0.00255789,3201.8,3200.6,0.29229248]
[1768337683382,0.00255789,3201.8,3200.6,0.15625]
[1768337692685,0.14440486,3201.8,3200.6,0.15625]
[1768337694990,0.14440486,3201.8,3199.9,0.00376092]
[1768337694991,0.14184697,3201.7,3200.0,0.15627]
[1768337695501,0.14184697,3201.7,3199.9,0.00376092]
[1768337695502,0.1562,3201.6,3199.9,0.00376092]
[1768337695687,0.14184697,3201.3,3199.9,0.00376092]
[1768337698294,4.465,3201.2,3199.9,0.00376092]
[1768337699394,1.04219117,3201.1,3199.9,1.04595209]
[1768337699893,1.34,3201.0,3200.1,1.04219117]
[1768337700189,40.8,3201.7,3200.1,1.04219117]
[1768337700395,0.14440486,3201.8,3200.1,1.04219117]
[1768337700396,1.04219117,3201.3,3200.1,1.04219117]
[1768337700578,1.04219117,3201.1,3200.1,1.04219117]
[1768337700784,0.14184697,3201.4,3200.1,1.04219117]
[1768337700785,2.38219117,3201.3,3200.1,1.04219117]
[1768337701186,2.38219117,3201.3,3200.3,1.04219117]
[1768337701395,1.34,3201.3,3200.3,1.04219117]
[1768337701799,1.04219117,3201.1,3199.9,0.00376092]
[1768337702093,0.14184697,3201.1,3200.1,1.04219117]
[1768337702297,0.00468552,3200.8,3200.2,0.00468552]
[1768337704498,3.126,3202.4,3200.7,0.13604248]
[1768337704689,4.466,3202.4,3200.9,0.29227248]
[1768337705102,0.14426126,3201.9,3200.3,0.15626]
[1768337705597,4.466,3201.8,3200.3,0.15626]
[1768337705799,0.14674547,3201.9,3200.3,0.15626]
[1768337706100,1.34,3201.8,3200.4,0.15626]
[1768337706495,0.00248421,3201.9,3200.7,0.15624]
[1768337707200,0.14674547,3201.9,3200.2,0.00468552]
[1768337707597,1.34,3201.8,3200.2,0.16095552]
[1768337708004,0.14426126,3201.7,3200.2,0.16095552]
[1768337709693,1.34,3201.6,3200.2,0.16095552]
[1768337709893,0.14426126,3201.7,3200.2,0.16095552]
[1768337710092,1.34,3201.8,3200.3,0.29832893]
[1768337710292,1.48426126,3201.8,3200.3,0.15626]
[1768337710918,0.14426126,3201.7,3200.3,0.15626]
[1768337711117,0.14426126,3201.6,3200.2,0.00468552]
[1768337715722,6.75446126,3201.6,3200.2,0.00468552]
[1768337715923,0.14426126,3201.5,3200.2,0.00468552]
[1768337716614,0.14426126,3201.5,3199.2,0.378]
[1768337716615,0.13528472,3201.2,3199.0,1.524214]
[1768337716926,0.13528472,3200.8,3199.1,0.15632]
[1768337717125,3.126,3200.7,3199.1,0.15632]
[1768337717419,3.126,3200.7,3198.8,0.13483155]
[1768337717420,1.34,3200.6,3199.2,0.15631]
[1768337717619,1.34,3200.6,3199.2,0.1590801]
[1768337718419,1.34,3200.5,3199.4,0.1563]
[1768337719618,0.13528472,3201.2,3199.4,0.1563]
[1768337719821,0.13528472,3201.0,3199.4,0.1563]
[1768337720021,1.341,3200.9,3199.4,0.1563]
[1768337721126,1.47628472,3200.9,3199.4,0.1563]
[1768337722220,3.126,3201.1,3199.2,0.13760165]
[1768337722424,1.348,3201.0,3199.2,0.13760165]
[1768337722621,1.348,3200.9,3199.8,0.15629]
[1768337722827,0.13528472,3200.8,3199.2,0.29391165]
[1768337723122,0.13528472,3200.7,3199.2,0.0027701]
[1768337723530,4.474,3200.6,3199.2,0.0027701]
[1768337723825,0.13528472,3200.5,3199.2,0.0027701]
[1768337724623,0.13528472,3199.9,3199.2,0.0027701]
[1768337724829,0.13528472,3199.9,3198.4,1.04983114]
[1768337725924,0.13528472,3199.9,3198.4,1.0534556]
[1768337726227,1.348,3199.8,3198.6,1.04269629]
[1768337726625,0.13528472,3200.3,3198.9,1.04269629]
[1768337726828,1.348,3200.1,3198.9,1.04269629]
[1768337727723,3.26128472,3200.8,3199.2,1.04269629]
[1768337727920,1.348,3200.7,3199.2,1.04269629]
[1768337728123,0.13528472,3200.8,3199.2,1.04269629]
[1768337728326,1.348,3200.7,3199.2,1.04269629]
[1768337728724,0.13528472,3200.8,3199.2,1.04269629]
[1768337728918,0.13528472,3200.8,3199.5,1.04269629]
[1768337729124,1.48328472,3200.8,3199.5,1.04269629]
[1768337729324,1.48328472,3200.8,3199.1,0.29115155]
[1768337729628,1.348,3200.9,3199.2,0.13483155]
[1768337730021,0.13528472,3200.8,3199.1,0.15632]
[1768337732833,0.13528472,3200.8,3198.7,0.378]
[1768337733021,0.13528472,3200.8,3198.5,0.15635]
[1768337734227,0.13528472,3200.6,3198.5,0.15635]
[1768337735735,0.14292699,3200.4,3198.5,0.15635]
[1768337735928,0.14292699,3200.2,3198.5,0.15635]
[1768337736128,1.348,3200.1,3198.5,0.15635]
[1768337736529,3.127,3200.3,3198.7,0.15634]
[1768337736530,1.348,3200.3,3198.7,0.15634]
[1768337736729,0.14292699,3200.9,3199.3,0.15631]
[1768337737031,1.348,3200.8,3199.3,0.15631]
[1768337739534,1.48992699,3200.9,3199.3,0.15631]
[1768337740844,0.14292699,3200.8,3199.3,0.15631]
[1768337742140,1.347,3201.0,3199.5,0.1563]
[1768337742340,1.347,3201.1,3199.6,0.1563]
[1768337743048,0.14292699,3201.2,3199.7,0.15629]
[1768337743233,9.72392699,3201.6,3200.0,0.15628]
[1768337743426,1.347,3201.4,3200.0,0.15628]
[1768337745343,6.59692699,3201.6,3200.0,0.15628]
[1768337745542,7.94392699,3201.6,3200.0,0.15628]
[1768337745838,1.48992699,3201.6,3200.2,0.15627]
[1768337746841,1.347,3201.8,3200.4,0.15626]
[1768337747338,0.00248421,3201.9,3200.4,0.15626]
[1768337747640,1.347,3201.8,3200.4,0.15626]
[1768337748241,0.14292699,3201.7,3200.4,0.15626]
[1768337754544,1.34848421,3201.9,3200.4,0.15626]
[1768337755042,1.4914112,3201.9,3200.4,0.15626]
[1768337756044,0.1454112,3201.9,3200.6,0.15625]
[1768337758247,0.1454112,3201.9,3200.7,0.15624]
[1768337758550,0.1454112,3201.9,3200.7,0.15969031]
[1768337759044,0.00248421,3201.9,3201.0,0.15623]
[1768337759545,0.00248421,3201.9,3201.1,0.15622]
[1768337760651,0.1454112,3201.9,3200.7,0.00345031]
[1768337764446,0.1454112,3201.9,3200.1,0.15627]
[1768337765451,0.1454112,3201.9,3200.1,0.1599836]
[1768337768454,0.1454112,3201.9,3200.1,0.0037136]
[1768337768653,0.1454112,3201.9,3200.8,0.15624]
[1768337768952,0.00248421,3201.9,3200.9,0.15623]
[1768337769151,0.00248421,3201.9,3200.4,0.14064893]
[1768337769341,0.00248421,3201.9,3201.1,0.15622]
[1768337769748,0.00248421,3201.9,3200.8,0.14064893]
[1768337769749,0.14427261,3202.8,3201.2,0.15622]
[1768337770749,0.14724949,3202.8,3201.2,0.15622]
[1768337773451,0.14724949,3202.8,3201.4,0.15621]
[1768337773653,0.14724949,3202.8,3201.5,0.1562]
[1768337774458,0.14724949,3202.8,3200.9,0.15623]
[1768337783359,0.1466284,3202.5,3200.9,0.15623]
[1768337783559,0.1466284,3202.1,3200.3,0.15626]
[1768337783769,0.1466284,3201.9,3200.3,0.15626]
[1768337789277,0.1466284,3201.3,3200.1,0.0037136]
[1768337789456,1.5156284,3201.2,3200.1,0.0037136]
[1768337793472,2.55772315,3201.2,3200.1,0.0037136]
[1768337795262,1.37,3201.1,3200.2,1.04209475]
[1768337795469,0.15619,3201.8,3200.8,1.04209475]
[1768337795470,0.1364522,3201.8,3200.8,1.04209475]
[1768337795673,1.37,3201.7,3201.0,1.04209475]
[1768337796267,1.04209475,3202.1,3201.0,1.04209475]
[1768337796567,1.37,3202.0,3201.0,1.04209475]
[1768337796962,1.37,3201.9,3201.0,1.04209475]
[1768337797362,1.37,3201.9,3200.8,0.15624]
[1768337800375,0.1364522,3202.2,3200.6,0.13860828]
[1768337800560,1.37,3202.2,3201.0,0.15623]
[1768337801373,1.5064522,3202.2,3201.0,0.15623]
[1768337804969,0.1364522,3202.2,3201.0,0.15623]
[1768337805177,1.369,3202.1,3201.0,0.15623]
[1768337807371,1.5054522,3202.2,3201.1,0.15622]
[1768337808375,0.1364522,3202.7,3201.2,0.15622]
[1768337808583,1.5054522,3202.6,3201.2,0.15622]
[1768337808973,0.1364522,3202.5,3201.2,0.15622]
[1768337809376,0.1364522,3202.5,3201.3,0.15621]
[1768337809575,1.369,3202.4,3201.3,0.15621]
[1768337809772,0.00297688,3202.8,3201.6,1.52298669]
[1768337809976,0.00297688,3202.8,3201.8,0.15619]
[1768337812282,0.00297688,3202.8,3201.9,0.15618]
[1768337812478,0.00297688,3202.8,3201.7,0.13860828]
[1768337813679,0.00297688,3202.8,3202.1,0.15617]
[1768337813888,0.1364522,3203.3,3202.1,0.15617]
[1768337814885,0.13925483,3203.3,3202.1,0.15617]
[1768337817186,0.13925483,3203.3,3201.6,1.52298669]
[1768337817187,0.13925483,3203.3,3202.2,0.15617]
[1768337817383,0.00280263,3203.3,3202.5,1.04047263]
[1768337817583,0.00280263,3203.3,3202.5,1.04337615]
[1768337817783,0.00280263,3203.3,3202.5,0.00290352]
[1768337819398,0.00280263,3203.3,3202.5,1.04337615]
[1768337820083,0.00280263,3203.3,3202.7,1.04047263]
[1768337820283,0.06031,3203.9,3203.2,1.04047263]
[1768337820586,0.06031,3203.9,3203.0,1.04047263]
[1768337821290,0.06358663,3203.9,3202.9,1.04047263]
[1768337824291,1.10405926,3203.9,3202.9,1.04047263]
[1768337825487,1.18554824,3203.7,3202.5,0.00290352]
[1768337825694,1.18554824,3203.0,3202.5,0.00290352]
[1768337825894,0.14507561,3203.0,3202.5,0.00290352]
[1768337826088,1.04047263,3203.2,3202.5,0.00290352]
[1768337826294,1.04047263,3203.4,3202.5,0.00290352]
[1768337826490,0.14507561,3203.5,3202.5,0.00290352]
[1768337826690,1.367,3203.4,3202.5,0.00290352]
[1768337827297,2.40747263,3203.4,3202.5,0.00290352]
[1768337827596,2.55254824,3203.4,3202.5,0.00290352]
[1768337827792,1.18554824,3203.4,3202.5,0.00290352]
[1768337827995,2.55254824,3203.4,3202.5,0.00290352]
[1768337830699,1.51207561,3203.4,3202.6,1.04047263]
[1768337831104,1.51207561,3203.4,3202.5,0.00290352]
[1768337831793,1.366,3203.4,3202.8,1.04047263]
[1768337832098,1.366,3203.4,3202.6,1.04047263]
[1768337832695,1.366,3203.6,3202.6,1.04047263]
[1768337833793,1.366,3203.6,3202.5,0.00290352]
[1768337834101,1.18554824,3203.5,3202.5,0.00290352]
[1768337834397,0.14507561,3203.4,3202.5,0.00290352]
[1768337835804,1.04047263,3203.1,3202.5,0.00290352]
[1768337836006,0.14507561,3203.2,3202.5,0.00290352]
[1768337836897,0.13324901,3203.7,3202.5,0.00290352]
[1768337837096,1.366,3203.6,3202.6,1.04047263]
[1768337837398,2.53972164,3203.6,3202.5,0.00290352]
[1768337837797,1.04047263,3203.4,3202.5,0.00290352]
[1768337839200,1.17372164,3203.6,3202.5,0.00290352]
[1768337839398,1.49924901,3203.5,3202.5,0.00290352]
[1768337840404,1.04047263,3203.4,3202.5,0.00290352]
[1768337840604,1.17372164,3203.4,3202.5,0.00290352]
[1768337841009,1.17372164,3203.2,3202.5,0.00290352]
[1768337841300,0.13324901,3203.2,3202.5,0.00290352]
[1768337845003,1.365,3203.3,3202.5,0.00290352]
[1768337846200,0.13324901,3203.2,3202.5,0.00290352]
[1768337846904,0.06358663,3203.9,3202.5,0.15905352]
[1768337847103,0.19683564,3203.9,3202.5,0.15905352]
[1768337847312,0.19683564,3203.9,3202.6,1.0408366]
[1768337851799,0.06358663,3203.9,3202.6,1.18266959]
[1768337852003,1.365,3204.6,3203.2,1.0408366]
[1768337852407,0.13324901,3204.7,3203.2,1.0408366]
[1768337852608,1.49724901,3204.7,3203.2,1.0408366]
[1768337852907,1.50210572,3204.7,3203.2,1.0408366]
[1768337853113,0.13710572,3204.7,3203.2,1.0408366]
[1768337853312,0.00385671,3204.7,3203.5,1.0408366]
[1768337855115,1.17892011,3204.7,3203.3,0.15611]
[1768337855414,0.1342268,3204.6,3203.3,0.15611]
[1768337856807,0.1342268,3204.6,3203.4,1.0408366]
[1768337857005,0.00385671,3204.7,3203.4,1.0408366]
[1768337857211,0.00385671,3204.7,3203.3,0.15611]
[1768337857413,0.00385671,3204.7,3203.5,1.0408366]
[1768337858516,0.00385671,3204.7,3203.8,1.0408366]
[1768337859725,0.1342268,3205.6,3203.8,1.0408366]
[1768337860517,0.1342268,3205.6,3203.8,1.1969266]
[1768337860713,0.1369113,3205.6,3203.8,1.1969266]
[1768337862718,0.1369113,3205.6,3204.1,1.0408366]
[1768337863018,1.5009113,3205.6,3204.1,1.0408366]
[1768337864331,0.1369113,3205.6,3204.1,1.0408366]
[1768337867523,0.1369113,3205.6,3204.4,1.0408366]
[1768337867826,0.1369113,3205.6,3204.2,0.15607]
[1768337873032,0.1342268,3206.0,3204.7,1.0408366]
[1768337874031,0.1367934,3206.0,3204.7,1.0408366]
[1768337874420,0.0025666,3206.0,3205.0,1.0408366]
[1768337874619,0.0025666,3206.0,3205.0,1.04427435]
[1768337875229,0.0025666,3206.0,3205.0,0.00343775]
[1768337876133,1.17763,3206.0,3205.0,0.00343775]
[1768337876432,0.1342268,3205.9,3205.0,0.00343775]
[1768337885431,0.0025666,3206.0,3205.0,0.00343775]
[1768337889030,0.14372695,3206.0,3205.0,0.00343775]
[1768337889234,0.14116035,3205.7,3204.2,0.15607]
[1768337889435,1.18199695,3205.5,3204.2,0.15607]
[1768337889635,0.14116035,3205.4,3203.8,0.15609]
[1768337890342,0.14116035,3205.4,3203.9,0.15608]
[1768337890945,1.361,3205.8,3204.4,1.0408366]
[1768337891138,0.14116035,3205.9,3204.4,1.0408366]
[1768337891440,0.14116035,3205.9,3204.4,0.15606]
[1768337891631,1.3635666,3206.0,3204.4,0.3006852]
[1768337891838,1.50472695,3206.0,3204.4,0.15606]
[1768337892143,0.14116035,3205.9,3204.4,0.15606]
[1768337892442,0.14116035,3205.8,3204.4,0.15606]
[1768337892828,0.14116035,3205.5,3203.9,0.1446252]
[1768337893836,0.14116035,3206.9,3205.1,0.1446252]
[1768337894036,0.14116035,3206.9,3205.6,0.156]
[1768337894242,0.14116035,3206.9,3204.9,0.15604]
[1768337895044,0.14384959,3206.9,3204.9,0.15604]
[1768337896241,0.14384959,3206.9,3205.0,0.15603]
[1768337900050,0.14384959,3206.9,3205.1,0.15603]
[1768337900250,1.50384959,3206.9,3205.2,0.15602]
[1768337901653,1.361,3206.8,3205.2,0.15602]
[1768337903242,1.49949069,3206.8,3205.2,0.15602]
[1768337903652,0.13849069,3206.7,3205.2,0.15602]
[1768337910449,0.00268924,3206.9,3205.3,0.15602]
[1768337910648,0.00268924,3206.9,3205.5,0.15601]
[1768337910861,1.361,3206.8,3205.5,0.15601]
[1768337913057,1.49949069,3206.8,3205.5,0.15601]
[1768337915462,1.03844587,3206.6,3205.5,0.15601]
[1768337916261,2.53793656,3206.8,3205.6,1.03844587]
[1768337916958,0.00268924,3206.9,3206.0,1.03844587]
[1768337917259,1.362,3206.8,3205.8,1.03844587]
[1768337917654,1.04113511,3206.9,3205.5,0.15601]
[1768337917960,1.04113511,3206.9,3205.8,1.03844587]
[1768337918660,1.1870757,3206.9,3205.6,1.03844587]
[1768337919559,1.18438646,3206.7,3205.5,0.15601]
[1768337920860,1.03844587,3206.5,3205.5,0.15601]
[1768337922062,1.18438646,3206.7,3205.5,1.19445587]
[1768337922252,0.14594059,3206.6,3205.5,0.15601]
[1768337922560,0.14594059,3206.6,3205.6,1.03844587]
[1768337923456,1.03844587,3206.7,3205.6,1.03844587]
[1768337923861,1.03844587,3206.7,3205.5,0.15601]
[1768337925356,1.363,3206.8,3205.8,1.03844587]
[1768337927666,1.03844587,3206.7,3205.5,2.95775168]
[1768337927861,1.03844587,3206.7,3205.6,1.03844587]
[1768337928466,0.14862983,3206.9,3205.5,2.95775168]
[1768337928653,1.363,3206.8,3205.8,1.03844587]
[1768337928857,1.1870757,3206.9,3205.8,1.03844587]
[1768337929165,1.363,3206.8,3205.8,1.03844587]
[1768337929552,1.03844587,3206.7,3205.6,3.99618755]
[1768337930767,1.51162983,3206.9,3205.8,1.03844587]
[1768337930959,0.14862983,3206.9,3205.8,1.03844587]
[1768337931160,1.51162983,3206.9,3205.8,1.03844587]
[1768337931356,1.36568924,3206.9,3205.8,1.03844587]
[1768337933966,0.00268924,3206.9,3205.8,1.03844587]
[1768337934361,0.00268924,3206.9,3206.2,1.03844587]
[1768337934563,0.14594059,3207.3,3206.2,1.04228672]
[1768337935160,1.03844587,3207.6,3206.4,1.03844587]
[1768337935361,1.362,3207.5,3206.4,1.03844587]
[1768337935562,1.03844587,3207.4,3206.4,1.03844587]
[1768337936964,1.03844587,3207.4,3206.2,1.04228672]
[1768337937363,0.14594059,3208.5,3206.6,0.14062208]
[1768337937569,1.03844587,3208.2,3207.1,1.03844587]
[1768337937862,1.03844587,3207.4,3206.4,0.14062208]
[1768337938066,1.362,3207.5,3206.5,1.03844587]
[1768337938572,1.36531675,3207.5,3206.5,1.03844587]
[1768337939670,1.362,3207.4,3206.5,1.03844587]
[1768337940366,1.03844587,3206.8,3206.2,0.00384085]
[1768337940664,1.362,3206.8,3206.2,1.03844587]
[1768337941467,1.362,3206.8,3206.2,1.04067059]
[1768337942161,1.18770321,3207.5,3206.4,1.03844587]
[1768337942360,1.03844587,3207.3,3206.2,0.00222472]
[1768337942764,5.52044587,3207.4,3206.2,0.00222472]
[1768337943373,1.03844587,3206.5,3206.2,0.00222472]
[1768337943568,1.362,3206.5,3205.6,1.03844587]
[1768337943866,1.03844587,3206.4,3205.5,0.15601]
[1768337944168,1.03844587,3205.8,3204.7,1.03844587]
[1768337944376,1.03844587,3205.6,3204.5,1.03844587]
[1768337944564,0.14594059,3205.5,3204.5,1.04200598]
[1768337944764,1.362,3205.4,3204.5,0.00356011]
[1768337945062,0.14594059,3205.5,3204.5,0.00356011]
[1768337945269,0.758,3205.4,3204.5,0.00356011]
[1768337945666,0.1349222,3206.0,3204.7,0.15603]
[1768337945870,0.1349222,3206.5,3204.9,0.15602]
[1768337946071,0.1349222,3206.3,3204.9,0.15602]
[1768337946576,4.482,3206.2,3204.9,0.15602]
[1768337946882,0.1349222,3206.3,3204.9,0.15602]
[1768337947065,1.363,3206.2,3204.9,0.15602]
[1768337947379,0.1349222,3206.9,3205.1,0.15601]
[1768337947570,4.6179222,3206.8,3205.1,0.15601]
[1768337948073,1.51939965,3207.1,3204.7,0.13772916]
[1768337948074,4.6189222,3206.7,3205.2,0.15601]
[1768337948769,0.1349222,3206.7,3205.2,0.15601]
[1768337948967,4.484,3206.6,3205.2,0.15601]
[1768337949168,1.363,3206.5,3205.2,0.15601]
[1768337949369,1.4979222,3206.5,3205.2,0.15601]
[1768337950270,0.1349222,3206.4,3204.5,0.14128927]
[1768337950473,0.1349222,3206.9,3205.4,1.51939965]
[1768337950668,0.1349222,3206.9,3205.6,0.15598]
[1768337950669,0.192,3206.8,3205.6,0.15598]
[1768337950970,0.3269222,3206.8,3205.6,0.15598]
[1768337951382,3.121,3207.1,3205.7,0.15598]
[1768337951571,1.363,3207.0,3205.7,0.15598]
[1768337951774,0.1349222,3206.9,3205.1,0.13772916]
[1768337952172,0.1349222,3206.9,3205.0,0.15601]
[1768337953772,0.1349222,3206.7,3205.0,0.15601]
[1768337953966,0.1349222,3206.3,3204.5,0.00356011]
[1768337954163,0.1349222,3206.3,3204.5,0.15960011]
[1768337954368,0.1349222,3205.9,3204.5,0.00356011]
[1768337954568,0.1349222,3205.7,3204.5,0.00356011]
[1768337954971,0.1349222,3205.5,3204.5,0.00356011]
[1768337956168,0.1349222,3205.5,3203.5,2.79615248]
[1768337956480,0.1349222,3205.3,3203.4,0.15609]
[1768337956882,4.62891339,3205.2,3203.4,0.15609]
[1768337957082,0.14591339,3205.1,3203.4,0.15609]
[1768337957376,0.14922043,3205.1,3203.4,0.15869723]
[1768337957971,4.483,3205.0,3203.4,0.15869723]
[1768337958168,0.14591339,3204.8,3203.4,0.00260723]
[1768337958674,1.362,3204.7,3203.4,0.00260723]
[1768337958883,4.62891339,3204.7,3203.4,0.00260723]
[1768337959379,4.483,3204.6,3203.4,0.00260723]
[1768337959579,4.483,3204.5,3203.4,0.00260723]
[1768337960281,0.14591339,3204.4,3203.4,0.00260723]
[1768337962687,1.362,3204.3,3203.4,0.00260723]
[1768337962879,1.362,3204.2,3203.4,0.00260723]
[1768337963082,1.362,3204.6,3203.4,0.00260723]
[1768337963280,0.00330704,3205.1,3203.5,0.14248933]
[1768337963482,0.00330704,3205.1,3203.9,0.15607]
[1768337964377,1.36530704,3205.1,3203.9,0.15607]
[1768337964587,0.00330704,3205.1,3203.9,0.15607]
[1768337964789,1.36530704,3205.1,3203.9,0.15607]
[1768337965290,1.51122043,3205.1,3203.4,0.00260723]
[1768337965982,1.51122043,3205.1,3203.5,0.15609]
[1768337966484,1.51122043,3205.1,3203.4,0.00260723]
[1768337966679,1.362,3205.0,3203.4,0.14509656]
[1768337967183,1.362,3205.0,3203.7,0.15608]
[1768337968184,0.00330704,3205.1,3203.7,0.15608]
[1768337968387,1.36530704,3205.1,3203.7,0.15608]
[1768337969277,1.36530704,3205.1,3203.4,0.14509656]
[1768337969483,0.00330704,3205.1,3204.0,0.15606]
[1768337970080,0.14922043,3205.1,3204.0,0.15606]